bitfinex/quotes_SOLUSD_20240824
["timestamp","ask_amount","ask_price","bid_price","bid_amount"]
[1724466239912,1.76372277,154.19,154.09,25.68983361]
[1724466240345,1.76372277,154.19,154.07,27.48363488]
[1724466240579,1.76372277,154.19,154.07,25.68983361]
[1724466240580,25.68983361,154.18,154.07,25.68983361]
[1724466240716,1.62202294,154.17,154.07,25.68983361]
[1724466241319,0.14227091,154.19,154.13,25.68983361]
[1724466242536,0.14227091,154.19,154.15,25.68983361]
[1724466243335,0.14227091,154.19,154.13,25.68983361]
[1724466243539,0.14227091,154.19,154.11,25.68983361]
[1724466243847,0.14227091,154.19,154.12,45.25098]
[1724466245759,22.6259,154.2,154.12,45.25098]
[1724466246143,0.12699072,154.13,154.12,45.25098]
[1724466255333,0.12699072,154.13,154.09,17.6401399]
[1724466255334,22.83289072,154.13,154.09,1.7612399]
[1724466255533,22.83289072,154.13,154.03,0.844013]
[1724466255737,1.62233762,154.12,154.06,6.75485897]
[1724466256067,1.62233762,154.12,154.03,0.844013]
[1724466257255,27.31217123,154.12,154.03,0.844013]
[1724466257870,22.83289072,154.13,154.03,0.844013]
[1724466257871,22.83289072,154.13,154.03,26.53384661]
[1724466259064,22.83289072,154.13,154.04,0.25098]
[1724466262661,1.62233532,154.12,154.04,0.25098]
[1724466262861,24.45522604,154.13,154.04,0.25098]
[1724466263172,1.62233532,154.11,154.04,0.25098]
[1724466263342,1.62251231,154.1,154.04,0.25098]
[1724466263542,27.31243303,154.12,154.04,0.12549]
[1724466263975,25.68983361,154.1,154.03,0.844013]
[1724466264142,25.68983361,154.08,154.03,0.844013]
[1724466264347,1.62312351,154.07,154.03,0.844013]
[1724466265861,6.2595,154.06,154.03,0.844013]
[1724466266066,1.62320484,154.05,154.03,0.844013]
[1724466266364,0.13865874,154.04,154.03,0.844013]
[1724466266565,15.0586,154.03,153.93,32.46491065]
[1724466266763,1.62342376,154.02,153.93,25.68983361]
[1724466266973,15.0586,154.03,153.95,25.68983361]
[1724466268265,15.0586,154.03,153.97,25.68983361]
[1724466268471,15.0586,154.03,153.98,0.25098]
[1724466269070,0.13865874,154.04,153.99,25.68983361]
[1724466269374,0.13865874,154.04,154.0,0.25098]
[1724466271192,0.13865874,154.04,153.97,25.68983361]
[1724466271662,0.13865874,154.04,153.98,0.25098]
[1724466274987,0.13865874,154.04,153.99,25.68983361]
[1724466275162,0.13865874,154.04,154.0,0.25098]
[1724466279362,0.13865874,154.04,153.97,25.68983361]
[1724466280678,0.13865874,154.04,153.98,0.25098]
[1724466283369,0.13865874,154.04,153.97,0.25098]
[1724466284672,1.76189915,154.04,153.93,25.68983361]
[1724466284879,1.76189915,154.04,153.94,0.12549]
[1724466285672,1.62324041,154.04,153.94,20.12549]
[1724466285892,1.62338533,154.05,153.94,20.12549]
[1724466286193,31.94933361,154.06,153.95,0.12549]
[1724466286194,0.13726304,153.96,153.95,0.12549]
[1724466286891,0.13726304,153.96,153.94,20.0]
[1724466287273,0.13726304,153.96,153.92,25.68983361]
[1724466288487,0.13726304,153.96,153.93,0.12549]
[1724466288678,0.13726304,153.96,153.94,25.68983361]
[1724466288874,0.13726304,153.96,153.95,0.25098]
[1724466289200,0.13896944,153.98,153.95,65.25098]
[1724466289422,0.13896944,153.98,153.97,25.68983361]
[1724466289601,0.13896944,153.98,153.97,45.94081361]
[1724466289807,0.13896944,153.98,153.97,90.94081361]
[1724466294831,0.1361411,153.99,153.97,90.94081361]
[1724466295117,0.1361411,153.99,153.98,0.25098]
[1724466296718,0.1361411,153.99,153.98,45.25098]
[1724466302734,0.1361411,153.99,153.98,0.25098]
[1724466304010,0.1361411,153.99,153.97,25.68983361]
[1724466305429,0.1361411,153.99,153.98,0.25098]
[1724466305639,15.0551,154.08,153.98,0.25098]
[1724466306048,1.62318338,154.05,153.98,0.25098]
[1724466306350,0.13890402,153.99,153.98,0.25098]
[1724466315933,0.13890402,153.99,153.98,45.25098]
[1724466326362,0.26003539,153.99,153.98,45.25098]
[1724466328358,0.12113137,153.99,153.98,45.25098]
[1724466329060,0.12113137,153.99,153.95,33.65285409]
[1724466329269,0.12113137,153.99,153.96,20.0]
[1724466330460,0.12113137,153.99,153.97,45.25098]
[1724466330863,0.12113137,153.99,153.97,70.94081361]
[1724466331755,0.12113137,153.99,153.96,20.0]
[1724466333049,0.12113137,153.99,153.97,70.94081361]
[1724466334953,0.11683565,154.08,154.01,20.0]
[1724466335153,0.11683565,154.08,154.04,25.68983361]
[1724466335354,0.11683565,154.08,154.05,0.25098]
[1724466335677,0.11683565,154.08,154.07,25.68983361]
[1724466335866,0.11683565,154.08,154.07,25.94081361]
[1724466337551,0.11683565,154.08,154.07,27.75311696]
[1724466338264,0.11683565,154.08,154.02,45.68983361]
[1724466338676,0.11683565,154.08,154.02,47.46825376]
[1724466339174,0.11683565,154.08,154.04,25.68983361]
[1724466339471,0.11683565,154.08,154.06,25.68983361]
[1724466339677,0.11683565,154.08,154.07,0.25098]
[1724466342875,0.11683565,154.08,154.07,2.07959749]
[1724466343854,0.11683565,154.08,154.07,1.82861749]
[1724466344054,0.11683565,154.08,154.05,20.0]
[1724466344460,0.11683565,154.08,154.06,25.68983361]
[1724466345273,0.11683565,154.08,154.07,0.25098]
[1724466345581,0.11683565,154.08,154.07,45.25098]
[1724466346374,0.24803488,154.08,154.07,45.25098]
[1724466348252,0.13119923,154.08,154.07,47.01649226]
[1724466352602,0.13119923,154.08,154.05,20.0]
[1724466353268,0.13119923,154.08,154.05,21.75948497]
[1724466353769,0.13119923,154.08,154.06,0.12549]
[1724466354077,0.13119923,154.08,154.06,0.25098]
[1724466354887,0.13119923,154.08,154.06,25.94081361]
[1724466358803,9.4828,154.07,153.98,1.80638724]
[1724466358994,1.62313503,154.06,153.96,25.68983361]
[1724466359184,46.62313503,154.06,153.96,25.68983361]
[1724466359386,6.4916,154.05,153.94,25.68983361]
[1724466359580,8.11538689,154.04,153.94,25.68983361]
[1724466359806,20.0,154.03,153.92,25.68983361]
[1724466360009,1.62360046,154.02,153.92,25.68983361]
[1724466361017,26.4918,154.04,153.94,25.68983361]
[1724466361018,20.0,154.04,153.94,25.68983361]
[1724466361180,9.4828,154.07,153.96,25.68983361]
[1724466361382,20.0,154.06,153.96,25.68983361]
[1724466361582,20.0,154.06,153.97,0.12549]
[1724466361805,20.0,154.06,153.97,0.25098]
[1724466363299,1.62318992,154.05,153.97,0.25098]
[1724466364504,1.62318992,154.05,153.96,25.68983361]
[1724466366111,20.0,154.06,153.96,25.68983361]
[1724466366310,0.14235096,153.98,153.97,22.83439]
[1724466366509,0.12315905,154.0,153.97,93.52422361]
[1724466366698,0.13136161,154.01,153.99,25.68983361]
[1724466366899,0.13136161,154.01,154.0,45.25098]
[1724466367917,21.46641883,154.11,154.0,78.65456556]
[1724466368115,21.46641883,154.11,154.02,25.68983361]
[1724466368299,21.3278,154.11,154.02,25.94081361]
[1724466369714,21.3278,154.11,154.02,70.94081361]
[1724466372117,21.3278,154.11,154.02,45.25098]
[1724466374891,7.80541691,154.03,153.93,6.76955612]
[1724466375087,27.31331146,154.02,153.89,21.83129976]
[1724466375387,27.31331146,154.02,153.89,20.0]
[1724466376411,27.31331146,154.02,153.89,26.77330212]
[1724466378618,27.31331146,154.02,153.9,45.25098]
[1724466380023,1.62347785,154.02,153.9,70.94081361]
[1724466380206,21.62347785,154.02,153.9,70.94081361]
[1724466386417,0.13559191,153.91,153.9,70.94081361]
[1724466390024,0.13559191,153.91,153.9,45.25098]
[1724466391603,0.13559191,153.91,153.9,70.94081361]
[1724466406330,0.26716072,153.91,153.9,70.94081361]
[1724466407332,0.24660583,153.92,153.9,70.94081361]
[1724466408137,0.1238954,153.92,153.9,70.94081361]
[1724466415058,0.1238954,153.92,153.9,457.84081361]
[1724466416041,0.1238954,153.92,153.9,70.94081361]
[1724466423456,0.1238954,153.92,153.9,70.94081361]
[1724466426269,0.13270481,153.91,153.9,70.94081361]
[1724466426648,0.24374648,153.92,153.9,77.35932584]
[1724466428149,0.11985108,153.92,153.9,77.35932584]
[1724466442381,0.11985108,153.92,153.9,6.41851223]
[1724466442684,0.11985108,153.92,153.87,0.844013]
[1724466444562,16.6555,153.91,153.87,0.844013]
[1724466445474,22.7934,153.91,153.87,0.844013]
[1724466445855,1.62445199,153.9,153.87,0.844013]
[1724466446255,0.12770339,153.88,153.87,0.844013]
[1724466466301,0.25839057,153.88,153.87,0.844013]
[1724466468206,0.13068718,153.88,153.87,0.844013]
[1724466486322,0.24823925,153.88,153.87,0.844013]
[1724466488411,0.11755207,153.88,153.87,0.844013]
[1724466502813,0.11755207,153.88,153.87,16.398113]
[1724466505879,0.12556024,153.89,153.87,23.064413]
[1724466506158,0.13069884,153.91,153.89,15.5541]
[1724466506311,0.24291129,153.93,153.91,15.5541]
[1724466506514,0.26608526,153.95,153.92,60.42963776]
[1724466506735,0.25879061,153.97,153.94,25.68983361]
[1724466506935,0.25879061,153.97,153.92,79.73980415]
[1724466506936,0.12383528,153.98,153.97,6.6663]
[1724466507146,0.12383528,153.98,153.97,22.47138]
[1724466507454,0.12383528,153.98,153.97,67.2204]
[1724466507754,48.02883361,154.14,153.97,74.53894824]
[1724466508051,48.02883361,154.14,154.02,25.68983361]
[1724466508052,22.339,154.14,154.02,25.68983361]
[1724466508242,22.339,154.14,154.04,25.68983361]
[1724466508851,6.4864,154.17,154.0,25.68983361]
[1724466508852,6.4864,154.17,154.06,25.68983361]
[1724466509058,6.4864,154.17,154.01,15.5541]
[1724466509059,8.10951813,154.16,154.04,25.68983361]
[1724466509232,25.68983361,154.13,154.01,15.5541]
[1724466509433,1.62306415,154.12,154.01,15.5541]
[1724466509951,0.25098,154.11,154.01,15.5541]
[1724466510160,1.62306409,154.1,154.01,15.5541]
[1724466510368,25.68983361,154.09,154.01,15.5541]
[1724466510533,21.62322434,154.08,154.01,15.5541]
[1724466510738,1.62322393,154.07,154.01,15.5541]
[1724466511531,1.62322393,154.07,154.01,41.24393361]
[1724466511742,1.62301509,154.07,154.01,41.24393361]
[1724466511943,21.62301108,154.13,154.01,41.24393361]
[1724466512142,1.62301108,154.13,154.03,25.68983361]
[1724466512842,1.62276682,154.14,154.03,25.68983361]
[1724466513448,20.0,154.15,154.03,25.68983361]
[1724466513757,20.0,154.15,154.04,45.0]
[1724466513953,1.62271366,154.14,154.04,45.0]
[1724466517453,6.488,154.13,154.03,25.68983361]
[1724466517770,21.87386229,154.12,154.01,145.5541]
[1724466517945,47.5636959,154.12,154.01,145.5541]
[1724466518844,15.0315,154.11,154.01,145.5541]
[1724466519172,21.74860554,154.1,154.01,145.5541]
[1724466519533,21.62311554,154.1,154.01,145.5541]
[1724466519739,20.0,154.1,154.01,145.5541]
[1724466520767,1.62305809,154.09,154.01,145.5541]
[1724466521643,1.62305809,154.09,154.02,45.0]
[1724466523345,21.62274195,154.1,154.02,45.0]
[1724466524071,20.0,154.13,154.02,45.0]
[1724466524255,15.8318,154.15,154.05,25.68983361]
[1724466524444,1.74813066,154.14,154.03,0.12549]
[1724466524645,1.74813066,154.14,154.03,0.25098]
[1724466526368,0.13159559,154.04,154.03,0.25098]
[1724466530867,0.13159559,154.04,154.01,145.5541]
[1724466531673,0.13159559,154.04,154.01,130.0]
[1724466533674,1.754944,154.04,154.01,130.0]
[1724466534448,0.13159559,154.04,154.01,130.0]
[1724466537677,0.13159559,154.04,154.03,130.0]
[1724466546281,30.13159559,154.04,154.03,130.0]
[1724466546864,0.13159559,154.04,154.03,130.0]
[1724466548180,1.62315895,154.05,154.03,130.0]
[1724466554289,8.11455895,154.05,154.03,130.0]
[1724466554460,20.0,154.04,154.03,130.0]
[1724466556768,26.4918,154.04,154.03,130.0]
[1724466556965,79.8683623,154.04,154.03,130.0]
[1724466557169,116.6443041,154.04,154.03,128.37648651]
[1724466558395,115.0208218,154.04,154.03,128.37648651]
[1724466559593,85.0208218,154.04,154.03,128.37648651]
[1724466560179,40.0208218,154.04,154.03,128.37648651]
[1724466562297,41.64426121,154.04,154.03,128.37648651]
[1724466563699,86.64426121,154.04,154.03,127.7348226]
[1724466565205,116.64426121,154.04,154.03,127.7348226]
[1724466578289,110.14216121,154.04,154.03,127.7348226]
[1724466578702,80.14216121,154.04,154.03,127.7348226]
[1724466579202,78.5187218,154.04,154.03,127.7348226]
[1724466584310,80.14216121,154.04,154.03,127.7348226]
[1724466587303,78.5187218,154.04,154.03,127.7348226]
[1724466595727,13.5187218,154.04,154.03,127.7348226]
[1724466596217,13.2677418,154.04,154.03,127.7348226]
[1724466597118,33.2677418,154.04,154.03,127.7348226]
[1724466597495,33.3932318,154.04,154.03,127.7348226]
[1724466599518,35.01657387,154.04,154.03,127.7348226]
[1724466599698,80.14206387,154.04,154.03,127.7348226]
[1724466601323,80.14206387,154.04,153.99,16.3004]
[1724466601324,6.4935,154.0,153.99,16.3004]
[1724466601514,26.61899,154.0,153.95,22.2724]
[1724466601732,20.12549,153.99,153.95,22.2724]
[1724466601920,26.9177212,153.99,153.95,22.2724]
[1724466602502,1.62343941,153.98,153.95,22.2724]
[1724466604026,26.7922312,153.99,153.95,22.2724]
[1724466607122,20.0,153.99,153.95,22.2724]
[1724466607331,1.62343941,153.98,153.95,22.2724]
[1724466608329,1.62343941,153.99,153.95,22.2724]
[1724466612330,0.12549,153.98,153.95,15.8201]
[1724466615430,0.12549,153.98,153.91,22.2349]
[1724466615431,8.36881941,153.98,153.91,22.2349]
[1724466615762,20.0,153.97,153.91,22.2349]
[1724466616230,20.12549,153.98,153.91,22.2349]
[1724466616432,0.12549,153.98,153.91,22.2349]
[1724466617034,1.74892941,153.98,153.91,22.2349]
[1724466617512,8.54158469,153.98,153.91,22.2349]
[1724466617827,20.0,153.97,153.91,22.2349]
[1724466618532,1.62343941,153.96,153.91,22.2349]
[1724466618764,20.0,153.97,153.92,26.98906833]
[1724466620020,6.4931,154.01,153.92,26.98906833]
[1724466620339,20.12549,154.0,153.92,26.98906833]
[1724466620727,20.0,154.0,153.94,25.68983361]
[1724466626244,6.79197859,154.01,153.95,6.1522]
[1724466626435,6.4914,154.05,153.96,41.61983361]
[1724466626638,6.79017726,154.03,153.96,41.61983361]
[1724466628223,20.0,154.02,153.96,41.61983361]
[1724466628543,20.0,154.02,153.96,15.93]
[1724466629930,1.62343941,154.01,153.96,15.93]
[1724466636928,8.41199119,154.01,153.96,15.93]
[1724466638623,6.4939,153.99,153.92,16.292]
[1724466638844,21.62343941,153.98,153.92,16.292]
[1724466639021,21.74892941,153.98,153.92,16.292]
[1724466639343,45.12549,153.97,153.92,16.292]
[1724466639551,1.74892941,153.96,153.92,16.292]
[1724466639726,1.62343941,153.95,153.92,16.292]
[1724466640149,30.0,153.94,153.92,16.292]
[1724466640553,1.62343941,153.95,153.92,16.292]
[1724466642959,20.0,153.97,153.92,16.292]
[1724466643135,20.0,154.0,153.92,17.59133292]
[1724466643331,1.62343941,153.99,153.92,16.292]
[1724466643656,1.62343941,153.98,153.92,16.292]
[1724466645236,0.12549,153.97,153.92,16.292]
[1724466646544,1.74892941,153.97,153.92,16.292]
[1724466647234,8.54160587,153.97,153.92,16.292]
[1724466647437,20.0,153.96,153.92,16.292]
[1724466647748,1.62343941,153.95,153.92,16.292]
[1724466661462,6.79267646,153.97,153.92,16.292]
[1724466661670,6.4927,154.02,153.93,1.29913252]
[1724466661861,6.79061322,154.0,153.92,41.98183361]
[1724466662074,1.62343941,153.99,153.92,41.98183361]
[1724466662379,6.79061322,154.0,153.92,41.98183361]
[1724466662575,1.62343941,153.99,153.92,41.98183361]
[1724466662975,20.0,153.99,153.92,41.98183361]
[1724466663491,1.62343941,153.98,153.92,41.98183361]
[1724466665792,1.62343941,153.98,153.92,16.292]
[1724466666554,0.25098,153.97,153.92,16.292]
[1724466667990,1.62343941,153.94,153.92,16.292]
[1724466668984,1.62343941,153.96,153.92,16.292]
[1724466669189,1.74892941,153.95,153.92,16.292]
[1724466670984,1.62343941,153.95,153.92,16.292]
[1724466674173,21.62343941,153.95,153.92,16.292]
[1724466674370,21.62343941,153.95,153.87,0.844013]
[1724466674371,21.62343941,153.95,153.87,16.865513]
[1724466674577,45.25098,153.94,153.87,16.865513]
[1724466674885,1.62343941,153.93,153.87,16.865513]
[1724466675068,1.74892941,153.92,153.87,16.865513]
[1724466677071,1.62343941,153.92,153.87,16.865513]
[1724466677474,20.0,153.93,153.87,16.865513]
[1724466677680,20.0,153.95,153.87,16.865513]
[1724466677883,1.62343941,153.94,153.87,16.865513]
[1724466679184,20.0,153.95,153.87,16.865513]
[1724466679367,20.0,153.95,153.88,25.68983361]
[1724466679993,1.62343941,153.94,153.88,25.68983361]
[1724466680266,1.62343941,153.94,153.87,16.865513]
[1724466680267,6.4929,154.02,153.92,25.68983361]
[1724466680480,42.19483361,154.05,153.92,25.68983361]
[1724466680686,6.79204183,153.99,153.92,26.9890907]
[1724466680889,6.4927,154.02,153.92,26.9890907]
[1724466681188,6.4927,154.02,153.93,15.1279]
[1724466681390,6.79184143,154.04,153.94,25.68983361]
[1724466681582,6.79184143,154.04,153.96,25.68983361]
[1724466682997,20.12549,154.03,153.96,25.68983361]
[1724466683192,20.12549,154.03,153.96,26.98872513]
[1724466683894,20.0,154.03,153.98,15.1279]
[1724466684093,1.62343941,154.03,153.98,15.1279]
[1724466685682,21.62343941,154.03,153.98,15.1279]
[1724466685884,20.0,154.03,153.98,40.81773361]
[1724466686091,6.79184143,154.04,153.98,40.81773361]
[1724466686291,6.4897,154.09,154.0,25.68983361]
[1724466686491,6.78858733,154.07,154.0,25.68983361]
[1724466687076,8.41176053,154.07,154.0,25.68983361]
[1724466687399,8.41176053,154.07,154.01,15.1279]
[1724466687400,6.78858733,154.07,154.01,15.1279]
[1724466687600,21.62307117,154.06,154.01,15.1279]
[1724466687978,1.62307117,154.06,154.01,15.1279]
[1724466688587,0.25098,154.05,154.01,15.1279]
[1724466688778,1.8743326,154.05,154.01,15.1279]
[1724466689198,21.6233526,154.05,154.01,15.1279]
[1724466689398,1.6233526,154.05,154.01,15.1279]
[1724466694076,6.74308,154.04,153.99,6.4506]
[1724466694281,21.62343941,154.03,153.99,6.4506]
[1724466695295,28.11573941,154.03,153.97,15.1279]
[1724466695500,0.12549,154.02,153.97,15.1279]
[1724466695725,1.62343941,154.01,153.97,15.1279]
[1724466696783,8.41443329,154.01,153.97,15.1279]
[1724466699512,1.62343941,154.01,153.97,15.1279]
[1724466709754,0.12549,154.0,153.97,15.1279]
[1724466709923,1.62343941,153.99,153.97,15.1279]
[1724466710822,1.62343941,153.99,153.95,6.5461]
[1724466711025,0.12549,153.98,153.95,6.5461]
[1724466715225,0.12549,153.98,153.93,15.2147]
[1724466716433,1.74892941,153.98,153.93,15.2147]
[1724466716728,0.12549,153.97,153.93,15.2147]
[1724466716906,6.4955,153.96,153.91,6.6016]
[1724466717125,21.74892941,153.95,153.89,16.229]
[1724466718126,30.0,153.94,153.89,16.229]
[1724466718331,1.62343941,153.93,153.89,16.229]
[1724466719410,1.62343941,153.94,153.89,16.229]
[1724466720229,8.41799507,153.94,153.89,16.229]
[1724466720532,0.12549,153.93,153.89,16.229]
[1724466720732,20.12549,153.93,153.89,16.229]
[1724466720929,1.62343941,153.92,153.89,16.229]
[1724466726099,8.1246,153.91,153.87,0.844013]
[1724466726349,8.1246,153.91,153.68,20.12549]
[1724466726350,26.0253,153.72,153.69,4.67749627]
[1724466726561,51.71513361,153.72,153.61,0.37731625]
[1724466726741,26.5053,153.72,153.65,25.68983361]
[1724466727048,6.5059,153.71,153.65,25.68983361]
[1724466727259,36.23355734,153.7,153.63,25.68983361]
[1724466727557,16.23355734,153.69,153.63,25.68983361]
[1724466727716,36.23355734,153.68,153.63,25.68983361]
[1724466728042,12.97682122,153.67,153.63,25.68983361]
[1724466728344,41.94813361,153.77,153.61,16.14091625]
[1724466728345,5.01035434,153.66,153.61,16.14091625]
[1724466728544,1.62343941,153.7,153.65,25.68983361]
[1724466728755,12.97844096,153.69,153.65,25.68983361]
[1724466728957,12.97844096,153.68,153.65,25.68983361]
[1724466729251,5.01098524,153.67,153.65,25.68983361]
[1724466729420,26.79638904,153.71,153.65,25.68983361]
[1724466729648,1.62343941,153.7,153.65,25.68983361]
[1724466730755,1.74892941,153.72,153.65,25.68983361]
[1724466731128,0.12549,153.71,153.65,25.68983361]
[1724466731544,21.74892941,153.72,153.65,25.68983361]
[1724466731752,20.12549,153.72,153.67,25.68983361]
[1724466732094,1.62343941,153.71,153.67,25.68983361]
[1724466732652,0.12549,153.72,153.67,25.68983361]
[1724466732861,1.62343941,153.72,153.67,25.68983361]
[1724466733657,6.502,153.8,153.71,25.68983361]
[1724466733995,6.79454306,153.76,153.71,25.68983361]
[1724466734163,1.62343941,153.75,153.71,25.68983361]
[1724466734487,6.79426061,153.75,153.71,25.68983361]
[1724466734792,6.502,153.8,153.71,25.68983361]
[1724466734964,6.5037,153.76,153.62,6.6604]
[1724466735170,6.5031,153.78,153.66,25.68983361]
[1724466735493,6.79388753,153.75,153.66,25.68983361]
[1724466735780,21.62343941,153.74,153.66,25.68983361]
[1724466735958,0.12549,153.73,153.66,25.68983361]
[1724466736155,21.87441941,153.73,153.66,25.68983361]
[1724466738070,21.74892941,153.73,153.66,25.68983361]
[1724466741397,21.74892941,153.73,153.62,6.6604]
[1724466741574,21.74892941,153.73,153.66,25.68983361]
[1724466743979,1.74892941,153.73,153.66,25.68983361]
[1724466745007,1.74892941,153.73,153.62,6.6604]
[1724466745008,31.69473361,153.83,153.7,25.68983361]
[1724466745176,6.5013,153.82,153.72,25.68983361]
[1724466745393,6.79280524,153.82,153.72,25.68983361]
[1724466745919,6.79280524,153.82,153.72,26.99070228]
[1724466746269,6.79280524,153.82,153.74,25.68983361]
[1724466746472,36.4994,153.87,153.76,25.68983361]
[1724466746787,6.78479267,153.85,153.76,25.68983361]
[1724466747285,1.62343941,153.84,153.76,25.68983361]
[1724466748100,0.25098,153.83,153.76,25.68983361]
[1724466748287,46.62343941,153.84,153.76,25.68983361]
[1724466748479,1.62343941,153.84,153.76,25.68983361]
[1724466748693,21.62343941,153.84,153.76,25.68983361]
[1724466749576,0.25098,153.83,153.74,25.68983361]
[1724466750976,0.25098,153.83,153.75,15.1302]
[1724466754481,72.56425302,153.83,153.75,15.1302]
[1724466754695,20.0,153.82,153.75,15.1302]
[1724466754905,1.74892941,153.81,153.75,15.1302]
[1724466755581,46.74892941,153.81,153.75,15.1302]
[1724466755781,20.0,153.8,153.71,21.7769]
[1724466756006,1.74892941,153.79,153.71,21.7769]
[1724466756985,20.0,153.8,153.72,1.3007682]
[1724466757186,20.0,153.8,153.71,21.7769]
[1724466757380,1.62343941,153.79,153.71,21.7769]
[1724466759917,1.62343941,153.79,153.72,25.68983361]
[1724466760385,20.0,153.84,153.74,25.68983361]
[1724466760592,6.78108361,153.85,153.75,1.30056002]
[1724466760895,1.62343941,153.84,153.74,25.68983361]
[1724466761825,0.25098,153.83,153.74,25.68983361]
[1724466762112,20.25098,153.83,153.74,25.68983361]
[1724466762406,1.62343941,153.82,153.74,25.68983361]
[1724466764317,0.12549,153.81,153.72,25.68983361]
[1724466764520,1.62343941,153.8,153.72,25.68983361]
[1724466765517,0.12549,153.81,153.72,25.68983361]
[1724466768710,1.62343941,153.82,153.74,25.68983361]
[1724466770086,20.25098,153.83,153.74,25.68983361]
[1724466770282,1.74892941,153.82,153.74,25.68983361]
[1724466775006,1.74892941,153.82,153.72,25.68983361]
[1724466780513,6.6256,153.81,153.71,21.7769]
[1724466780698,66.87441941,153.8,153.71,21.7769]
[1724466780883,1.62343941,153.79,153.71,21.7769]
[1724466781394,21.74892941,153.8,153.72,25.68983361]
[1724466782305,21.62343941,153.8,153.72,25.68983361]
[1724466782498,20.0,153.8,153.71,21.7769]
[1724466782707,1.62343941,153.81,153.74,25.68983361]
[1724466784209,20.0,153.81,153.74,25.68983361]
[1724466784507,13.1255,153.85,153.76,25.68983361]
[1724466784508,6.6256,153.85,153.76,25.68983361]
[1724466784711,6.6256,153.85,153.77,1.30042369]
[1724466785218,6.6256,153.89,153.8,25.68983361]
[1724466785508,6.6256,153.89,153.81,1.30013137]
[1724466786825,20.25098,153.88,153.81,1.30013137]
[1724466787520,20.25098,153.88,153.78,23.0263]
[1724466787687,1.62343941,153.87,153.78,48.71613361]
[1724466788292,20.25098,153.88,153.78,48.71613361]
[1724466788593,1.62343941,153.87,153.78,48.71613361]
[1724466792702,46.62343941,153.87,153.78,16.4882]
[1724466792902,20.25098,153.86,153.74,32.22793361]
[1724466793216,1.62343941,153.85,153.74,48.71613361]
[1724466794603,0.25098,153.84,153.74,23.0263]
[1724466794905,36.05328,153.84,153.74,23.0263]
[1724466795111,12.8666,153.83,153.72,25.68983361]
[1724466795308,25.68983361,153.81,153.7,15.554]
[1724466795697,65.25098,153.8,153.7,15.554]
[1724466795916,1.62343941,153.79,153.7,15.554]
[1724466796216,0.12549,153.78,153.7,15.554]
[1724466799613,20.12549,153.78,153.7,15.554]
[1724466799811,0.12549,153.78,153.7,15.554]
[1724466800022,1.62343941,153.79,153.71,25.68983361]
[1724466800400,6.3659,153.83,153.73,25.68983361]
[1724466800727,1.62343941,153.82,153.75,25.68983361]
[1724466801032,1.62343941,153.82,153.71,70.68983361]
[1724466801730,21.62343941,153.82,153.71,70.68983361]
[1724466802101,0.25098,153.81,153.71,70.68983361]
[1724466802297,0.25098,153.81,153.71,25.68983361]
[1724466802498,0.12549,153.81,153.73,25.68983361]
[1724466802735,21.62343941,153.82,153.73,25.68983361]
[1724466803332,21.62343941,153.82,153.74,1.3005554]
[1724466803333,20.0,153.82,153.74,1.3005554]
[1724466803667,6.5521,153.87,153.79,25.68983361]
[1724466803931,1.62343941,153.86,153.79,25.68983361]
[1724466805105,6.5521,153.87,153.79,25.68983361]
[1724466805308,15.2892,153.88,153.81,25.68983361]
[1724466805532,15.2892,153.88,153.82,1.29995754]
[1724466806409,15.2892,153.88,153.81,25.68983361]
[1724466807332,1.62343941,153.87,153.81,25.68983361]
[1724466808455,1.62343941,153.87,153.79,25.68983361]
[1724466811230,21.62343941,153.87,153.77,40.85283361]
[1724466811561,0.12549,153.86,153.77,40.85283361]
[1724466812257,0.12549,153.86,153.75,25.68983361]
[1724466812258,45.25098,153.86,153.75,25.68983361]
[1724466812422,20.0,153.85,153.75,25.68983361]
[1724466812844,1.62343941,153.84,153.75,25.68983361]
[1724466818159,7.68573941,153.84,153.75,25.68983361]
[1724466818460,0.12549,153.83,153.75,25.68983361]
[1724466818675,6.0623,153.84,153.75,25.68983361]
[1724466819041,1.62343941,153.83,153.75,25.68983361]
[1724466835559,1.62343941,153.82,153.74,15.163]
[1724466836371,1.62343941,153.82,153.75,25.68983361]
[1724466836548,1.62343941,153.83,153.75,25.68983361]
[1724466838968,7.81122941,153.84,153.75,25.68983361]